[Event "AI Cup Div-2 2023"]
[Site "Online"]
[Date "2023.09.25"]
[Round "1.2"]
[White "Saric, Ivan"]
[Black "Dominguez Perez, Leinier"]
[Result "0-1"]
[ECO "C65"]
[WhiteElo "2647"]
[BlackElo "2745"]
[Annotator "TA"]
[PlyCount "85"]
[EventDate "2023.09.18"]
[EventType "k.o."]
[EventCountry "NET"]
[SourceTitle "playchess.com"]
[Source "ChessBase"]
[SourceQuality "1"]
[TimeControl "900+3"]

{[%evp 9,85,1,15,13,28,10,9,7,4,0,0,0,19,0,0,0,18,5,14,17,15,0,36,0,0,1,12,7,22,0,0,-6,-14,-15,-17,-32,-5,-36,-30,-79,-89,-90,-108,-159,-153,-156,-154,-171,-170,-262,-261,-359,-389,-391,-390,-481,-477,-474,-466,-475,-472,-781,-781,-779,-775,-759,-757,-675,-650,-1564,-538,-29990,-29991,-29995,-29996,-29996,-29997,-29997]} 1. e4 {[%emt 0:00:03]} e5 {[%emt 0:00:04]} 2. Nf3 {[%emt 0:00:03]} Nc6 {[%emt 0:00:01]} 3. Bb5 {[%emt 0:00:40]} Nf6 {[%emt 0:00:03]} 4. d3 {[%emt 0:00:01]} Bc5 {[%emt 0:00:03]} 5. c3 {[%emt 0:00:00]} O-O {[%emt 0:00:03]} 6. O-O {[%emt 0:00:02] C65: Ruy Lopez: Berlin Defence (3...Nf6), unusual lines and 4 0-0 Bc5.} d5 {[%emt 0:00:03]} 7. Nbd2 {[%emt 0:00:01]} dxe4 {[%emt 0:00:05]} 8. dxe4 {[%emt 0:00:00] The position is equal.} a5 {[%emt 0:00:03]} 9. Qc2 {[%emt 0:00:04] 9.a4 is the modern continuation.} Qe7 {[%emt 0:00:11]} 10. a4 {[%emt 0:00:04]} Rd8 $5 {[%emt 0:00:22][%mdl 4] A promising side line.} 11. h3 {[%emt 0:01:10]} (11. Nc4 $5 {[%cal Rb5c6]}) 11... Nb8 {[%emt 0:00:15]} 12. Re1 {[%emt 0:00:02]} h6 {[%emt 0:00:02]} 13. Nf1 $1 {[%emt 0:00:04]} c6 {[%emt 0:00:03]} 14. Bc4 {[%emt 0:00:04] [#]} Re8 $5 $146 {[%emt 0:01:55][%mdl 8] An interesting novelty.} ({Predecessor:} 14... Na6 15. Ng3 Qc7 16. Ba2 b5 17. Qe2 Rb8 18. Nh4 Bf8 19. Qf3 bxa4 20. Bxh6 Nc5 {½-½ Nepomniachtchi,I (2795)-Ding,L (2788) World-ch Nepomniachtchi-Ding 2023 (9)}) 15. Ng3 {[%emt 0:00:07]} Qc7 {[%emt 0:00:11]} 16. Nh4 {[%emt 0:00:08]} Be6 {[%emt 0:00:12]} 17. Bxe6 {[%emt 0:00:19]} Rxe6 {[%emt 0:00:00]} 18. Nhf5 {[%emt 0:00:55]} Na6 {[%emt 0:01:35]} 19. Qe2 {[%emt 0:00:15]} Rd8 {[%emt 0:00:35]} 20. Qf3 {[%emt 0:00:26]} Bf8 {[%emt 0:00:19]} 21. h4 {[%emt 0:02:59]} Nc5 {[%emt 0:01:11]} 22. Be3 {[%emt 0:00:05]} b5 {[%emt 0:00:52]} (22... Kh8 {feels hotter.} 23. Rf1 Kh7 24. Rfd1 Rxd1+ 25. Qxd1 b5) 23. Bxc5 {[%emt 0:02:00]} Bxc5 {[%emt 0:00:04]} 24. Red1 {[%emt 0:00:01]} (24. Ne3 $11 {was preferrable.}) 24... Rxd1+ $17 {[%emt 0:00:53] Black continues to play with concentration.} 25. Rxd1 {[%emt 0:00:10]} bxa4 {[%emt 0:00:39]} 26. Rd2 {[%emt 0:02:00]} ({White should try} 26. Ne3) 26... a3 {[%emt 0:00:48]} 27. bxa3 {[%emt 0:00:03]} Bxa3 {[%emt 0:00:01]} 28. Qd1 {[%emt 0:00:29]} Bf8 {[%emt 0:01:53]} 29. Ne3 {[%emt 0:02:03]} (29. Nh5 $142) 29... Rd6 $19 {[%emt 0:01:12]} 30. Nc4 {[%emt 0:00:20]} Rxd2 {[%emt 0:00:02]} 31. Qxd2 {[%emt 0:00:00]} a4 {[%emt 0:00:06][%cal Ba5a4,Ba4a3][%mdl 32]} 32. Qa2 {[%emt 0:01:17] [#]} a3 {[%emt 0:00:08][%mdl 512]} 33. f3 {[%emt 0:00:07]} Nd7 {[%emt 0:00:58]} 34. Nf5 {[%emt 0:00:08]} Nb6 {[%emt 0:00:25] ...Nxc4 is the strong threat.} 35. Nfe3 {[%emt 0:00:17]} (35. Nxa3 $142 Qa7 36. Kf1) 35... Nxc4 {[%emt 0:00:34]} 36. Nxc4 {[%emt 0:00:01][%mdl 4096] Endgame KQB-KQN} Qd8 {[%emt 0:00:01]} 37. g3 {[%emt 0:00:21]} Qd1+ {[%emt 0:00:22]} 38. Kg2 {[%emt 0:00:01]} Qc1 {[%emt 0:00:00] [#] Hoping for ...Bc5.} 39. Qb3 {[%emt 0:00:07]} h5 {[%emt 0:00:16]} (39... Bc5 $142 {( -> ...Qg1+)} 40. h5 Kh7) 40. Kh2 {[%emt 0:00:03] Prevents Qg1+} Bc5 {[%emt 0:00:08] Black mates.} 41. g4 {[%emt 0:00:01]} Qg1+ {[%emt 0:00:05]} 42. Kh3 {[%emt 0:00:01]} Qf1+ {[%emt 0:00:01]} 43. Kg3 {[%emt 0:00:02] Weighted Error Value: White=0.57/Black=0.17 (very precise)} 0-1

[Event "AI Cup Div-2 2023"]
[Site "Online"]
[Date "2023.09.25"]
[Round "1.2"]
[White "Gledura, Benjamin"]
[Black "Caruana, Fabiano"]
[Result "0-1"]
[ECO "D30"]
[WhiteElo "2633"]
[BlackElo "2786"]
[Annotator "TA"]
[PlyCount "82"]
[EventDate "2023.09.18"]
[EventType "k.o."]
[EventCountry "NET"]
[SourceTitle "playchess.com"]
[Source "ChessBase"]
[SourceQuality "1"]
[TimeControl "900+3"]

{[%evp 9,82,14,11,11,10,11,14,6,7,9,16,12,12,6,15,0,0,0,0,0,0,0,0,0,0,-6,-15,-17,-14,-14,-3,-3,-3,-3,0,0,0,-20,-20,-21,-21,-15,-17,-8,-12,-68,0,0,11,-8,0,0,0,-58,-58,-260,-260,-260,-260,-260,-86,-260,-260,-260,-260,-260,-260,-420,-420,-1791,-485,-1080,-1051,-1021,-996]} 1. d4 {[%emt 0:00:05]} d5 {[%emt 0:00:07]} 2. c4 {[%emt 0:00:02]} e6 {[%emt 0:00:01]} 3. Nf3 {[%emt 0:00:05]} Nf6 {[%emt 0:00:01]} 4. e3 {[%emt 0:00:02]} Bd6 {[%emt 0:00:10]} 5. c5 {[%emt 0:00:12]} Be7 {[%emt 0:00:01]} 6. b4 {[%emt 0:00:06] D30: Queen's Gambit Declined: Systems without Nc3.} O-O {[%emt 0:00:18] [#]} 7. a4 $146 {[%emt 0:00:07]} ({Predecessor:} 7. Bb2 c6 8. Nbd2 b6 9. Be2 Nbd7 10. O-O Qc7 11. Qc2 a5 12. cxb6 Qxb6 13. bxa5 Rxa5 {½-½ Potkin,V (2599)-Sethuraman,S (2640) Baku op 2015 (9)}) 7... b6 {[%emt 0:00:03]} 8. Qc2 {[%emt 0:01:59] The position is equal.} c6 {[%emt 0:03:00]} 9. Bd3 {[%emt 0:00:22]} Qc7 {[%emt 0:01:22]} 10. Ba3 {[%emt 0:01:22]} bxc5 {[%emt 0:00:36]} 11. bxc5 {[%emt 0:00:50]} Ba6 {[%emt 0:00:02]} 12. O-O {[%emt 0:00:07]} Bxd3 {[%emt 0:00:03]} 13. Qxd3 {[%emt 0:00:00]} Nbd7 {[%emt 0:00:01]} 14. Nbd2 {[%emt 0:00:26][%cal Bb1d2,Bd2f3,Bf3d4][%mdl 32]} e5 {[%emt 0:00:17]} 15. Nxe5 {[%emt 0:01:10]} Nxe5 {[%emt 0:00:03]} 16. dxe5 {[%emt 0:00:00]} Qxe5 {[%emt 0:00:00]} 17. Nf3 {[%emt 0:00:07]} Qc7 {[%emt 0:00:04]} 18. Nd4 {[%emt 0:00:18]} Ng4 {[%emt 0:00:29][%csl Gg4][%cal Rc7h2] [#]} 19. Nf3 {[%emt 0:00:25]} Bf6 {[%emt 0:01:05]} 20. Rab1 {[%emt 0:00:05]} Rab8 {[%emt 0:00:01]} 21. Bb4 {[%emt 0:00:36]} Ne5 {[%emt 0:00:53]} 22. Nxe5 {[%emt 0:00:02]} Qxe5 {[%emt 0:00:03]} 23. g3 {[%emt 0:00:28]} h5 {[%emt 0:00:08]} 24. h4 {[%emt 0:00:12]} Rfe8 {[%emt 0:00:37]} 25. Bd2 {[%emt 0:00:41]} Qe4 {[%emt 0:00:11]} 26. Qxe4 {[%emt 0:00:08]} dxe4 {[%emt 0:00:00]} 27. Rfc1 {[%emt 0:00:11]} (27. Ba5 $11) 27... Rxb1 {[%emt 0:00:30]} (27... Be5 $1 $15) 28. Rxb1 $15 {[%emt 0:00:02][%mdl 4096] Endgame KRB-KRB} Rd8 {[%emt 0:00:15]} 29. Be1 {[%emt 0:00:46]} (29. Ba5 $5 {[%cal Ra5d8]} Rd3 30. Rb8+ Kh7 31. Rc8 $14) 29... Rd5 {[%emt 0:00:24]} 30. Kf1 {[%emt 0:00:03]} Rxc5 {[%emt 0:00:03]} 31. Rb7 {[%emt 0:00:17]} (31. Rb8+ $11 Kh7 32. Rb7) 31... a5 $1 {[%emt 0:00:35]} 32. Ra7 $2 {[%emt 0:00:03]} (32. Rc7 $15) 32... Rc1 $19 {[%emt 0:00:01] And now ...Bc3 would win.} 33. Ke2 {[%emt 0:00:02] [#]} Ra1 $1 {[%emt 0:00:02]} ({Stronger than} 33... Rc2+ 34. Kd1 Ra2 35. Rxa5 $11) 34. Ra6 {[%emt 0:02:48]} Ra2+ $2 {[%emt 0:00:04]} (34... Rxa4 $19 {has better winning chances. Strongly threatening ...Ra2+.} 35. Rxa5 Rxa5 36. Bxa5 Kh7) 35. Kd1 $2 {[%emt 0:00:02]} (35. Kf1 $17 {was the only defense.}) 35... Rxa4 {[%emt 0:00:08]} 36. Rxc6 {[%emt 0:00:01]} Ra1+ {[%emt 0:00:04]} 37. Ke2 {[%emt 0:00:02]} a4 {[%emt 0:00:03][%cal Ba5a4,Ba4a3,Ba3a2][%mdl 32]} 38. Ba5 $2 {[%emt 0:01:58]} (38. Bb4 {was necessary.}) 38... a3 {[%emt 0:00:18]} 39. Bd8 {[%emt 0:00:04]} (39. Bb4 $142) 39... Bb2 {[%emt 0:00:06]} (39... Bxd8 $142 40. Rc8 Ra2+ 41. Kf1 Rd2) 40. Be7 {[%emt 0:00:08]} (40. Kd2 $142 Rf1 41. Ra6) 40... a2 {[%emt 0:00:08][%cal Ob2a3] Threatens to win with ...Ba3!} 41. Ra6 {[%emt 0:00:01] Prevents Ba3.} Bc3 {[%emt 0:00:01] Weighted Error Value: White=0.53/Black=0.25 (precise)} 0-1

[Event "AI Cup Div-2 2023"]
[Site "Online"]
[Date "2023.09.25"]
[Round "1.2"]
[White "Kuzubov, Yuriy"]
[Black "Fedoseev, Vladimir"]
[Result "1/2-1/2"]
[ECO "D14"]
[WhiteElo "2625"]
[BlackElo "2683"]
[Annotator "TA"]
[PlyCount "69"]
[EventDate "2023.09.18"]
[EventType "k.o."]
[EventCountry "NET"]
[SourceTitle "playchess.com"]
[Source "ChessBase"]
[SourceQuality "1"]
[TimeControl "900+3"]

{[%evp 15,69,0,7,5,22,3,8,5,28,14,15,30,28,12,42,27,27,25,21,32,38,29,43,45,50,34,44,39,66,63,97,88,213,60,60,60,60,61,58,40,276,147,147,135,267,260,258,226,204,50,50,9,9,9,12,12]} 1. d4 {[%emt 0:00:09]} d5 {[%emt 0:00:10]} 2. c4 {[%emt 0:00:03]} c6 {[%emt 0:00:04]} 3. Nf3 {[%emt 0:00:24]} Nf6 {[%emt 0:00:08]} 4. cxd5 {[%emt 0:00:05]} cxd5 {[%emt 0:00:02]} 5. Nc3 {[%emt 0:00:01]} Nc6 {[%emt 0:00:05]} 6. Bf4 {[%emt 0:00:03]} Bf5 {[%emt 0:00:01]} 7. e3 {[%emt 0:00:05]} e6 {[%emt 0:00:01]} 8. Bd3 {[%emt 0:00:02] 8.Qb3 gains popularity.} Bg6 {[%emt 0:00:03]} 9. O-O {[%emt 0:00:10] D14: Slav Defence: Exchange variation with ...Bf5.} Be7 {[%emt 0:00:02]} 10. Rc1 {[%emt 0:00:12]} O-O {[%emt 0:00:04]} 11. Ne5 {[%emt 0:00:25]} Rc8 {[%emt 0:00:23]} 12. Nxg6 {[%emt 0:01:09]} hxg6 {[%emt 0:00:03] [#]} 13. h3 $146 {[%emt 0:00:07]} ({Predecessor:} 13. Qe2 Nh5 14. Bg3 Nxg3 15. hxg3 f5 16. f3 Bd6 17. Kf2 g5 18. Rh1 f4 19. g4 fxe3+ 20. Qxe3 {0-1 Piliciauskas,A-Liao,J Wch U08 Vung Tau 2008 (10)}) 13... a6 {[%emt 0:00:02]} 14. Na4 {[%emt 0:00:32]} Nd7 {[%emt 0:00:04]} (14... Nb4 $5 {[%cal Rc8c1]} 15. Bb1 Rxc1 16. Qxc1 Nc6 $11) 15. a3 {[%emt 0:00:35]} b5 {[%emt 0:01:12]} 16. Nc5 {[%emt 0:00:04]} Nxc5 {[%emt 0:00:04]} 17. dxc5 {[%emt 0:00:01]} Bf6 {[%emt 0:00:25]} 18. Qe2 {[%emt 0:05:21]} Qa5 {[%emt 0:00:25]} 19. Bd6 {[%emt 0:00:27]} Rfd8 {[%emt 0:00:05]} 20. Rfd1 {[%emt 0:01:00]} Qa4 {[%emt 0:00:11]} 21. Qc2 {[%emt 0:01:02]} Qh4 {[%emt 0:00:34]} 22. Bg3 {[%emt 0:00:08] This pair of bishops is nice.} Qh6 {[%emt 0:00:11]} 23. a4 {[%emt 0:00:18]} bxa4 {[%emt 0:02:17]} (23... d4 $16 {keeps fighting.}) 24. Bxa6 $2 {[%emt 0:00:23]} ({Better is} 24. Qxa4 $18 Bxb2 25. Rb1) 24... Nb4 $14 {[%emt 0:00:21][%csl LRa6,LRc2]} 25. Qxa4 {[%emt 0:00:02]} Nxa6 {[%emt 0:00:02]} 26. Qxa6 {[%emt 0:00:01]} Bxb2 {[%emt 0:00:31]} 27. Rc2 {[%emt 0:00:45]} (27. Rb1 $5 {[%cal Rb1b2]} Qh5 28. Bf4 $16) 27... Ra8 $2 {[%emt 0:00:03] [#]} ({Black should play} 27... Qh5 $1 $14 28. Rb1 Be5) 28. Qe2 {[%emt 0:00:11]} ({Only move:} 28. Qd3 $1 $18 Bf6 29. c6) 28... Bf6 $16 {[%emt 0:00:07]} 29. c6 {[%emt 0:00:08][%cal Bc5c6,Bc6c7][%mdl 32] c7 would be deadly.} Qg5 {[%emt 0:00:01]} (29... Qh5 $16 {might work better.}) 30. c7 {[%emt 0:00:07]} Rdc8 {[%emt 0:00:02]} 31. e4 {[%emt 0:00:11]} Be5 {[%emt 0:00:30]} 32. Bxe5 {[%emt 0:00:02]} (32. exd5 $18 Bxg3 33. fxg3 exd5 34. Qb5) 32... Qxe5 $14 {[%emt 0:00:03]} 33. exd5 {[%emt 0:00:01]} (33. Rdc1 $5 {[%cal Re4d5]}) 33... Qxe2 {[%emt 0:00:02]} 34. Rxe2 {[%emt 0:00:01] [#] Black must now prevent d6.} exd5 {[%emt 0:00:03]} 35. Re7 {[%emt 0:00:03] Weighted Error Value: White=0.32/Black=0.32} 1/2-1/2

[Event "AI Cup Div-2 2023"]
[Site "Online"]
[Date "2023.09.25"]
[Round "1.2"]
[White "Hakobyan, Aram"]
[Black "Keymer, Vincent"]
[Result "1/2-1/2"]
[ECO "E48"]
[WhiteElo "2617"]
[BlackElo "2717"]
[Annotator "TA"]
[PlyCount "140"]
[EventDate "2023.09.18"]
[EventType "k.o."]
[EventCountry "NET"]
[SourceTitle "playchess.com"]
[Source "ChessBase"]
[SourceQuality "1"]
[TimeControl "900+3"]

{[%evp 15,140,-11,0,-3,-7,0,0,0,6,0,0,0,0,0,0,-2,-6,-21,-29,-83,27,31,29,25,28,39,40,32,55,29,49,36,47,44,54,52,56,28,60,51,45,26,28,28,28,28,28,20,25,0,0,0,30,24,25,25,32,0,10,9,9,9,52,32,30,9,9,9,32,32,34,10,10,10,37,14,14,14,14,14,14,14,14,14,33,43,78,0,0,0,0,0,4,0,0,0,0,0,0,0,0,0,0,0,0,0,0,0,0,0,0,0,0,0,0,0,0,0,0,0,0,0,0,0,0,0,0]} 1. d4 {[%emt 0:00:07]} Nf6 {[%emt 0:00:05]} 2. c4 {[%emt 0:00:02]} e6 {[%emt 0:00:01]} 3. Nc3 {[%emt 0:00:15]} Bb4 {[%emt 0:00:02]} 4. e3 {[%emt 0:00:03]} O-O {[%emt 0:00:02]} 5. Bd3 {[%emt 0:00:17]} d5 {[%emt 0:00:04]} 6. cxd5 {[%emt 0:00:06]} exd5 {[%emt 0:00:01]} 7. Nge2 {[%emt 0:00:00]} Re8 {[%emt 0:00:13]} 8. O-O {[%emt 0:00:05]} Bd6 {[%emt 0:00:06]} 9. Bd2 {[%emt 0:00:02] E48: Nimzo-Indian: Rubinstein: 5 Bd3 d5 including 6 Ne2, but excluding 6 a3.} b6 {[%emt 0:00:20]} 10. Nf4 {[%emt 0:00:03]} Bxf4 {[%emt 0:00:08]} 11. exf4 {[%emt 0:00:00]} c5 {[%emt 0:00:01]} 12. Be3 {[%emt 0:00:05]} c4 {[%emt 0:00:07]} 13. Bc2 {[%emt 0:00:03]} Nc6 {[%emt 0:00:07] [#]} 14. f5 $146 {[%emt 0:00:09]} ({Predecessor:} 14. Re1 Nb4 15. Bb1 Rb8 16. a3 Nc6 17. f3 b5 18. g4 a5 19. Bf2 b4 20. Rxe8+ Nxe8 {½-½ So,W (2760)-Giri,A (2768) Norway Chess Armageddon 11th rapid 2023 (3)}) 14... Nb4 {[%emt 0:01:31]} 15. Bb1 {[%emt 0:00:02]} Ne4 {[%emt 0:03:43]} 16. Bxe4 {[%emt 0:02:10]} (16. a3 $5 {[%cal Rb1e4]} Nd3 17. Bxd3 cxd3 18. Qxd3 $11) 16... dxe4 {[%emt 0:00:03]} 17. f6 {[%emt 0:00:00]} Nd5 {[%emt 0:01:31]} (17... Qxf6 $17 18. Qa4 Qe7) 18. fxg7 $11 {[%emt 0:00:22]} Nxc3 {[%emt 0:00:02]} 19. bxc3 {[%emt 0:00:02]} Qd5 {[%emt 0:00:02]} 20. Bf4 {[%emt 0:00:47]} Re6 {[%emt 0:02:20]} 21. Re1 {[%emt 0:02:10]} Bb7 {[%emt 0:00:12]} 22. Re3 {[%emt 0:00:16]} ({Much worse is} 22. Qg4 e3 23. f3 (23. fxe3 $2 Rg6 $19 {[%mdl 64] Skewer, Double Attack}) 23... Rae8 $11) 22... Qf5 {[%emt 0:00:13]} 23. Be5 {[%emt 0:00:45]} f6 {[%emt 0:00:09]} 24. Bg3 {[%emt 0:00:20]} Kxg7 {[%emt 0:00:11]} 25. Qa4 {[%emt 0:01:02] [#] Qd7+ would be deadly.} Qd5 {[%emt 0:00:35] Prevents Qd7+} 26. Rae1 {[%emt 0:00:39]} a6 {[%emt 0:00:24]} 27. Bf4 {[%emt 0:00:11]} h5 {[%emt 0:00:09]} 28. Qd1 {[%emt 0:00:44]} Rh8 {[%emt 0:00:39]} 29. h4 {[%emt 0:00:34]} Kf7 {[%emt 0:00:05]} 30. Rg3 {[%emt 0:00:07]} Ree8 {[%emt 0:00:23]} 31. Qb1 {[%emt 0:00:25]} b5 {[%emt 0:00:02]} 32. Ree3 {[%emt 0:00:39]} Qf5 {[%emt 0:00:44]} 33. Be5 {[%emt 0:00:07][%cal Og3f3] [#] Black must now prevent Rgf3!} Qh7 {[%emt 0:01:13]} (33... fxe5 $2 34. Rgf3 $18) 34. Bc7 {[%emt 0:01:17] Black is weak on the dark squares} Rhg8 {[%emt 0:00:02]} 35. Qb4 {[%emt 0:00:08]} Qf5 {[%emt 0:00:11]} 36. Qd6 {[%emt 0:00:25]} Qe6 {[%emt 0:00:15]} 37. Qf4 {[%emt 0:00:04]} Rxg3 {[%emt 0:00:02]} 38. Rxg3 {[%emt 0:00:03] Threatens to win with Qh6.} Rg8 {[%emt 0:00:01]} 39. Rxg8 {[%emt 0:00:31]} (39. Qh6 $5 {[%cal Rh6h7]} Rxg3 40. Bxg3 $14) 39... Kxg8 $14 {[%emt 0:00:00][%mdl 4096] Endgame KQB-KQB} 40. Bd8 {[%emt 0:00:02]} e3 {[%emt 0:00:13]} 41. fxe3 {[%emt 0:00:13]} (41. Qxf6 $2 {perishes.} Qxf6 42. Bxf6 e2 $19) 41... Qe4 {[%emt 0:00:06]} (41... Qd5 {looks sharper.} 42. Qg3+ Kf7 43. Ba5 Qe4) 42. Qxe4 {[%emt 0:01:19]} (42. Qxf6 $2 Qxg2#) 42... Bxe4 {[%emt 0:00:01]} 43. Bxf6 {[%emt 0:00:16] KB-KB} Kf7 {[%emt 0:00:02] Prevents Be7} 44. Be5 {[%emt 0:00:06][%cal Og2g4]} a5 {[%emt 0:00:26]} 45. a3 {[%emt 0:00:04]} Ke6 {[%emt 0:00:07][%cal Ob5b4] Strongly threatening ...b4!} 46. Kf2 {[%emt 0:00:03]} b4 {[%emt 0:00:08]} 47. cxb4 {[%emt 0:00:02]} (47. axb4 a4 48. Bb8 a3 $19) 47... axb4 {[%emt 0:00:01]} 48. axb4 {[%emt 0:00:00]} c3 {[%emt 0:00:00] ( -> ...c2)} 49. Ke2 {[%emt 0:00:04] Hoping for b5.} Kd5 $1 {[%emt 0:00:08][%cal Od5c4]} 50. b5 {[%emt 0:00:09] g3 is the strong threat.} Bxg2 {[%emt 0:00:03]} 51. b6 {[%emt 0:00:02]} (51. Kd3 $16) 51... Kc4 $11 {[%emt 0:00:01] The position is equal.} 52. Kd1 {[%emt 0:00:06]} Be4 {[%emt 0:00:01]} 53. Kc1 {[%emt 0:00:01]} Kb5 {[%emt 0:00:04]} 54. Bc7 {[%emt 0:00:03]} Kc4 {[%emt 0:00:01]} 55. Bd8 {[%emt 0:00:00]} Bd5 {[%emt 0:00:02]} 56. Be7 {[%emt 0:00:04]} Be4 {[%emt 0:00:01]} 57. Bg5 {[%emt 0:00:03]} Kb5 {[%emt 0:00:02]} 58. Bd8 {[%emt 0:00:05]} Kc4 {[%emt 0:00:01]} 59. Bc7 {[%emt 0:00:00]} Bd5 {[%emt 0:00:01]} 60. Bd6 {[%emt 0:00:05]} Be4 {[%emt 0:00:02]} 61. Bc5 {[%emt 0:00:01]} Bd5 {[%emt 0:00:01]} 62. Ba3 {[%emt 0:00:03]} Be4 {[%emt 0:00:01]} 63. Bf8 {[%emt 0:00:01]} Kb5 {[%emt 0:00:02]} 64. d5 {[%emt 0:00:06]} Bxd5 {[%emt 0:00:03]} 65. Bg7 {[%emt 0:00:04]} Kc4 {[%emt 0:00:09]} 66. Bd4 {[%emt 0:00:01]} Be4 {[%emt 0:00:03]} 67. Bg7 {[%emt 0:00:01]} Kb3 {[%emt 0:00:03]} 68. Bd4 {[%emt 0:00:00]} Kc4 {[%emt 0:00:00]} 69. Bh8 {[%emt 0:00:01]} Kb3 {[%emt 0:00:01]} 70. Bd4 {[%emt 0:00:00]} Kc4 {[%emt 0:00:01] Weighted Error Value: White=0.09 (flawless) /Black=0.10 (very precise)} 1/2-1/2